bitfinex/quotes_BTCUSD_20251117
["timestamp","ask_amount","ask_price","bid_price","bid_amount"]
[1763398363903,0.9826796,94515.0,94505.0,0.07340957]
[1763398364113,0.02109332,94514.0,94504.0,0.07340957]
[1763398364357,0.98492593,94514.0,94502.0,0.07340957]
[1763398364586,0.96383261,94512.0,94501.0,0.07340957]
[1763398364811,0.98492593,94511.0,94501.0,0.07340957]
[1763398365042,0.96383261,94511.0,94505.0,0.001]
[1763398365263,0.02109332,94510.0,94505.0,0.001]
[1763398365465,0.96383261,94511.0,94506.0,0.07340957]
[1763398365778,0.96383261,94511.0,94507.0,0.07340957]
[1763398366191,0.02109332,94510.0,94507.0,0.07340957]
[1763398366368,0.96383261,94511.0,94508.0,0.02116222]
[1763398366569,0.96383261,94511.0,94509.0,0.07340957]
[1763398366792,0.96383261,94519.0,94509.0,0.07340957]
[1763398366995,0.02109332,94518.0,94509.0,0.07340957]
[1763398367399,0.02109332,94518.0,94506.0,0.07340957]
[1763398367633,0.96383261,94516.0,94506.0,0.07340957]
[1763398367837,0.01946265,94515.0,94507.0,0.01946265]
[1763398368012,0.01946265,94515.0,94506.0,0.07340957]
[1763398368214,0.0105054,94514.0,94509.0,0.001]
[1763398368472,0.1252551,94515.0,94495.0,0.09244776]
[1763398368717,0.96383261,94505.0,94485.0,0.11361514]
[1763398368923,0.96383261,94494.0,94485.0,0.017748]
[1763398369138,0.96383261,94500.0,94485.0,0.017748]
[1763398369346,0.96383261,94510.0,94489.0,0.09244776]
[1763398369551,0.96383261,94510.0,94490.0,0.02116626]
[1763398369723,0.96383261,94500.0,94490.0,0.02116626]
[1763398370053,0.96383261,94510.0,94490.0,0.02116626]
[1763398370458,0.96383261,94510.0,94487.0,0.09244776]
[1763398370685,0.96383261,94510.0,94491.0,0.09728603]
[1763398371294,0.96383261,94501.0,94489.0,0.09244776]
[1763398371506,0.96383261,94501.0,94476.0,0.17081033]
[1763398371507,0.96383261,94501.0,94487.0,0.09244776]
[1763398371727,0.96383261,94497.0,94483.0,0.09244776]
[1763398372156,0.96383261,94497.0,94484.0,0.0211676]
[1763398372624,0.96383261,94497.0,94491.0,0.002]
[1763398372832,0.01973467,94496.0,94491.0,0.002]
[1763398373046,0.01973467,94495.0,94491.0,0.02316603]
[1763398373249,0.01973467,94494.0,94491.0,0.02116603]
[1763398373460,0.01973467,94493.0,94491.0,0.02116603]
[1763398373664,0.96383261,94510.0,94492.0,0.07612]
[1763398373889,0.96383261,94501.0,94488.0,0.02785459]
[1763398374097,0.01972513,94500.0,94487.0,0.02785459]
[1763398374301,0.01972513,94499.0,94488.0,0.1117]
[1763398374531,0.01972513,94498.0,94486.0,0.02785459]
[1763398374741,0.01972513,94497.0,94488.0,0.00013154]
[1763398374976,0.01972513,94496.0,94488.0,0.00013154]
[1763398375205,0.01972513,94495.0,94488.0,0.02798613]
[1763398375413,0.01972513,94495.0,94489.0,0.07612]
[1763398375627,0.01972513,94494.0,94488.0,0.00013154]
[1763398375832,0.01972513,94493.0,94488.0,0.00013154]
[1763398376042,0.01972513,94492.0,94488.0,0.00213154]
[1763398376256,0.01972513,94491.0,94488.0,0.00013154]
[1763398376481,0.65726108,94520.0,94488.0,0.00013154]
[1763398376482,0.01972513,94490.0,94488.0,0.00013154]
[1763398376695,0.00025027,94524.0,94519.0,0.03642]
[1763398376911,0.00025027,94524.0,94489.0,0.07812]
[1763398376912,0.01972556,94523.0,94501.0,3.0]
[1763398377124,0.01972556,94523.0,94500.0,0.00999999]
[1763398377125,0.65726108,94520.0,94502.0,0.02116357]
[1763398377328,0.65726108,94511.0,94503.0,0.02116334]
[1763398377531,0.65726108,94511.0,94489.0,0.07812]
[1763398377532,0.01972556,94510.0,94490.0,0.03116625]
[1763398377761,0.01972556,94509.0,94500.0,0.00999999]
[1763398377971,0.01972556,94508.0,94501.0,0.02116379]
[1763398378177,0.01972556,94507.0,94501.0,0.02116379]
[1763398378392,0.01972556,94506.0,94502.0,0.07612]
[1763398378595,0.01972556,94505.0,94503.0,0.02116334]
[1763398378799,0.01972556,94504.0,94503.0,0.02116334]
[1763398379006,0.01972556,94504.0,94502.0,0.07612]
[1763398379221,0.01972556,94503.0,94500.0,0.002]
[1763398379439,0.01972556,94502.0,94483.0,0.03642]
[1763398379667,0.01972556,94501.0,94483.0,0.03642]
[1763398379866,0.0004385,94510.0,94484.0,0.06961]
[1763398379867,0.67698664,94500.0,94484.0,0.06961]
[1763398380078,0.01972556,94499.0,94484.0,0.06961]
[1763398380322,0.01972556,94498.0,94483.0,0.03642]
[1763398380537,0.01972556,94497.0,94483.0,0.10603]
[1763398380747,0.01972556,94496.0,94490.0,0.00999999]
[1763398380961,0.01972556,94495.0,94491.0,3.0]
[1763398381172,0.01972556,94494.0,94491.0,0.06961]
[1763398381377,0.01972556,94494.0,94483.0,0.03642]
[1763398381378,0.01972556,94493.0,94492.0,0.09077581]
[1763398381806,0.01972556,94493.0,94492.0,3.14028581]
[1763398382014,0.01972556,94493.0,94492.0,0.11912]
[1763398382647,0.01972556,94493.0,94492.0,0.05051]
[1763398382908,0.01972556,94493.0,94484.0,0.12534184]
[1763398383122,0.01972556,94492.0,94472.0,0.05573184]
[1763398383336,0.65726108,94490.0,94473.0,0.02117006]
[1763398383569,0.65726108,94520.0,94473.0,0.09121856]
[1763398383789,0.65726108,94500.0,94489.0,0.03759]
[1763398384015,0.00025027,94524.0,94490.0,0.02116626]
[1763398384245,0.00025027,94524.0,94492.0,0.001]
[1763398384246,0.65726108,94500.0,94492.0,0.001]
[1763398384467,0.65726108,94502.0,94492.0,0.001]
[1763398384685,0.02109332,94501.0,94473.0,0.0004385]
[1763398384910,1.31452216,94483.0,94473.0,0.0004385]
[1763398385127,0.0177559,94482.0,94444.0,0.05573184]
[1763398385349,0.00999999,94520.0,94444.0,0.05573184]
[1763398385350,0.5,94509.0,94449.0,0.03721425]
[1763398385558,0.65726108,94460.0,94450.0,0.05838947]
[1763398385761,0.65726108,94460.0,94453.0,0.03721425]
[1763398385969,2.0,94517.0,94455.0,0.03721425]
[1763398386201,0.65726108,94470.0,94459.0,0.03721425]
[1763398386409,0.65726108,94470.0,94460.0,0.02117298]
[1763398387244,0.65726108,94470.0,94457.0,0.03721425]
[1763398387458,0.65726108,94470.0,94454.0,0.03721425]
[1763398387663,0.65726108,94464.0,94446.0,0.05573184]
[1763398387903,0.65726108,94464.0,94447.0,0.01955954]
[1763398388296,0.323,94496.0,94448.0,0.06961]
[1763398388297,0.65726108,94470.0,94448.0,0.06961]
[1763398388509,0.65726108,94470.0,94450.0,0.00999999]
[1763398388709,0.65726108,94470.0,94451.0,0.021175]
[1763398388914,0.65726108,94470.0,94451.0,0.090785]
[1763398389766,0.65726108,94470.0,94451.0,0.021175]
[1763398390010,0.65726108,94470.0,94452.0,0.06961]
[1763398390650,2.0,94502.0,94453.0,0.016431]
[1763398390851,0.65726108,94470.0,94454.0,0.1479]
[1763398391056,0.65726108,94470.0,94453.0,0.016431]
[1763398391057,0.65726108,94470.0,94455.0,0.1690741]
[1763398391264,0.65726108,94480.0,94469.0,0.03759]
[1763398391474,0.65726108,94480.0,94455.0,0.05573184]
[1763398391716,0.65726108,94480.0,94466.0,0.03759]
[1763398391932,0.40194884,94513.0,94467.0,0.02117141]
[1763398392141,0.65726108,94490.0,94479.0,0.04951]
[1763398392350,0.65726108,94510.0,94480.0,0.0907785]
[1763398392562,0.65726108,94510.0,94489.0,0.0871]
[1763398392813,0.65726108,94520.0,94490.0,0.02116626]
[1763398393065,0.65726108,94520.0,94491.0,0.06961]
[1763398393279,0.65769958,94520.0,94500.0,0.00999999]
[1763398393484,0.65769958,94520.0,94501.0,0.02116379]
[1763398393703,0.65769958,94520.0,94501.0,0.09077379]
[1763398393914,0.0004385,94520.0,94501.0,0.09077379]
[1763398394126,0.65726108,94511.0,94495.0,0.323]
[1763398394330,0.0004385,94520.0,94496.0,0.08635294]
[1763398394534,0.65769958,94520.0,94510.0,0.03759]
[1763398394749,0.65769958,94520.0,94511.0,0.02116155]
[1763398394959,0.65769958,94520.0,94497.0,0.03759]
[1763398394960,0.0004385,94520.0,94498.0,0.02116446]
[1763398395178,0.65726108,94510.0,94486.0,0.06961]
[1763398395396,0.65726108,94500.0,94490.0,0.02116626]
[1763398395625,0.01977028,94499.0,94490.0,0.02116626]
[1763398395843,0.01977028,94498.0,94490.0,0.02116626]
[1763398396063,0.01977028,94497.0,94490.0,0.02116626]
[1763398396305,0.01977028,94496.0,94491.0,0.06961]
[1763398396564,0.01977028,94495.0,94492.0,0.02116581]
[1763398396782,0.01977028,94494.0,94492.0,0.02116581]
[1763398397014,0.01977028,94493.0,94492.0,0.02116581]
[1763398397213,0.01977028,94493.0,94482.0,0.06961]
[1763398397419,0.65726108,94510.0,94492.0,0.06586581]
[1763398397629,0.01978295,94509.0,94492.0,0.06586581]
[1763398397859,0.01978295,94508.0,94492.0,0.06586581]
[1763398398062,0.01978295,94507.0,94482.0,0.12694184]
[1763398398269,0.65726108,94502.0,94482.0,0.05573184]
[1763398398467,0.01978295,94501.0,94483.0,0.05573184]
[1763398398683,0.67704403,94500.0,94486.0,0.07121]
[1763398398886,0.01978295,94499.0,94490.0,0.07121]
[1763398399009,0.01978295,94498.0,94490.0,0.07121]
[1763398399215,0.01978295,94497.0,94491.0,0.02116603]
[1763398399444,0.01978295,94496.0,94484.0,0.05573184]
[1763398399649,0.01978295,94495.0,94482.0,0.05573184]
[1763398399844,0.01978295,94494.0,94483.0,0.05573184]
[1763398400044,0.01978295,94493.0,94483.0,0.05573184]
[1763398400248,0.65769958,94520.0,94483.0,0.05573184]
[1763398400249,0.01978295,94492.0,94490.0,0.07121]
[1763398400459,0.01978295,94491.0,94490.0,0.09237626]
[1763398400791,0.01978295,94491.0,94485.0,0.05573184]
[1763398401011,0.65726108,94500.0,94490.0,0.0447]
[1763398401200,0.01980438,94499.0,94490.0,0.0447]
[1763398401406,0.01980438,94498.0,94489.0,0.03759]
[1763398401666,0.01980438,94497.0,94489.0,0.03772154]
[1763398401874,0.01980438,94496.0,94490.0,0.01398056]
[1763398402078,0.65726108,94510.0,94491.0,0.02116603]
[1763398402233,0.65726108,94500.0,94489.0,0.03772154]
[1763398402439,0.01981619,94499.0,94489.0,0.00013154]
[1763398402651,0.01981619,94498.0,94489.0,0.00113154]
[1763398402854,0.01981619,94497.0,94489.0,0.00113154]
[1763398403048,0.01981619,94496.0,94489.0,0.02018849]
[1763398403257,0.01981619,94495.0,94489.0,0.02018849]
[1763398403455,0.65726108,94520.0,94489.0,0.02018849]
[1763398403456,0.01981619,94494.0,94491.0,0.001]
[1763398403662,0.01981619,94493.0,94491.0,0.001]
[1763398403862,0.01982753,94492.0,94491.0,0.001]
[1763398404830,0.01982753,94492.0,94489.0,0.00013154]
[1763398405033,0.01982753,94491.0,94489.0,0.00013154]
[1763398405258,0.01982753,94490.0,94489.0,0.00113154]
[1763398405485,0.01982753,94490.0,94489.0,0.00013154]
[1763398405924,0.01982753,94490.0,94450.0,0.09244776]
[1763398405925,0.323,94486.0,94466.0,0.05573184]
[1763398406134,1.31452216,94480.0,94464.0,0.05573184]
[1763398406311,1.31452216,94480.0,94464.0,0.00013258]
[1763398406312,0.04092577,94479.0,94464.0,0.00013258]
[1763398406547,0.01983245,94478.0,94464.0,0.00013258]
[1763398406794,0.01983245,94477.0,94464.0,0.02130466]
[1763398407087,1.31452216,94480.0,94464.0,0.02130466]
[1763398407088,0.01983245,94476.0,94464.0,0.02130466]
[1763398407321,0.02109332,94479.0,94464.0,0.02130466]
[1763398407547,0.65726108,94480.0,94464.0,0.02130466]
[1763398407775,0.01982748,94479.0,94464.0,0.02130466]
[1763398407988,0.02109332,94478.0,94464.0,0.00013258]
[1763398408195,0.02109332,94478.0,94464.0,0.02130466]
[1763398408817,0.01681949,94479.0,94464.0,0.01695207]
[1763398409019,0.01681949,94479.0,94464.0,0.00013258]
[1763398409838,1.31452216,94480.0,94464.0,0.02130466]
[1763398410234,0.02109332,94479.0,94464.0,0.02130466]
[1763398410655,0.01175812,94479.0,94464.0,0.00013258]
[1763398410861,0.323,94478.0,94464.0,0.00013258]
[1763398411078,0.02109332,94477.0,94464.0,0.00013258]
[1763398411639,0.06324455,94476.0,94464.0,0.00013258]
[1763398411854,0.65726108,94465.0,94448.0,0.05573184]
[1763398412076,0.65726108,94465.0,94445.0,0.05573184]
[1763398412077,0.65726108,94455.0,94445.0,0.05573184]
[1763398412276,0.65726108,94455.0,94424.0,0.09244776]
[1763398412277,0.02109332,94454.0,94443.0,0.05573184]
[1763398412489,1.3579409,94453.0,94442.0,0.05573184]
[1763398412704,1.3579409,94453.0,94440.0,0.05573184]
[1763398412705,1.33561548,94452.0,94440.0,0.05573184]
[1763398412921,1.31452216,94450.0,94440.0,0.05573184]
[1763398413095,1.31452216,94450.0,94430.0,0.07430909]
[1763398413096,0.02109332,94449.0,94441.0,0.05573184]
[1763398413370,0.02109332,94449.0,94431.0,0.02117948]
[1763398413371,0.02109332,94449.0,94439.0,0.05573184]
[1763398413575,1.33561548,94449.0,94440.0,0.05573184]
[1763398413787,0.65726108,94450.0,94440.0,0.05573184]
[1763398413996,0.65726108,94480.0,94443.0,0.05573184]
[1763398414201,0.65726108,94480.0,94449.0,0.05573184]
[1763398414202,0.65726108,94460.0,94449.0,0.05573184]
[1763398414415,0.001,94455.0,94453.0,0.05573184]
[1763398414636,0.65726108,94460.0,94445.0,0.07430909]
[1763398414850,0.65726108,94460.0,94457.0,0.05595379]
[1763398415067,0.65726108,94467.0,94457.0,0.05595379]
[1763398415914,0.01671456,94479.0,94451.0,0.05595379]
[1763398416125,0.65726108,94461.0,94451.0,0.00013145]
[1763398416556,0.02109332,94460.0,94451.0,0.00013145]
[1763398417207,0.01393274,94460.0,94451.0,0.00013145]
[1763398417426,0.02109332,94460.0,94451.0,0.00013145]
[1763398417830,0.34409332,94460.0,94451.0,0.00013145]
[1763398418040,0.323,94460.0,94451.0,0.00013145]
[1763398418265,0.02109332,94459.0,94451.0,0.00013145]
[1763398419366,0.01529776,94460.0,94451.0,0.00013145]
[1763398419568,0.02059926,94459.0,94451.0,0.00013145]
[1763398420380,0.10416178,94457.0,94451.0,0.00013145]
[1763398420588,0.01600127,94456.0,94451.0,0.00013145]
[1763398420834,0.1252551,94456.0,94451.0,0.00013145]
[1763398422150,0.001,94456.0,94451.0,0.00013145]
[1763398422367,0.02209332,94456.0,94451.0,0.00013145]
[1763398422780,0.07897893,94456.0,94451.0,0.00013145]
[1763398422988,0.36641874,94455.0,94451.0,0.00013145]
[1763398423190,0.04341874,94453.0,94434.0,0.03730638]
[1763398423404,0.04341874,94451.0,94434.0,0.03730638]
[1763398423657,0.02109332,94450.0,94434.0,0.03730638]
[1763398423879,1.31452216,94444.0,94434.0,0.03730638]
[1763398424089,1.31452216,94444.0,94410.0,0.0004]
[1763398424090,0.02109332,94443.0,94433.0,0.03730638]
[1763398424303,0.6783544,94443.0,94433.0,0.03730638]
[1763398424524,0.65726108,94443.0,94432.0,0.03730638]
[1763398424730,0.65726108,94444.0,94432.0,0.03730638]
[1763398424731,0.6783544,94442.0,94432.0,0.03730638]
[1763398424961,0.65726108,94442.0,94432.0,0.03730638]
[1763398425172,0.02109332,94441.0,94432.0,0.03730638]
[1763398425385,0.02109332,94443.0,94433.0,0.03730638]
[1763398426023,0.02109332,94443.0,94439.0,0.03730638]
[1763398426237,0.02109332,94443.0,94441.0,0.03730638]
[1763398426441,0.01446261,94443.0,94439.0,0.03730638]
[1763398426644,0.323,94448.0,94439.0,0.03730638]
[1763398426848,0.02109332,94447.0,94439.0,0.03730638]
[1763398427469,0.02109332,94447.0,94443.0,0.03730638]
[1763398427676,0.65726108,94449.0,94444.0,0.03730638]
[1763398427888,0.02109332,94448.0,94444.0,0.03730638]
[1763398428062,0.001,94447.0,94442.0,0.03730638]
[1763398428315,0.001,94447.0,94443.0,0.03730638]
[1763398428731,0.02109332,94448.0,94445.0,0.03730638]
[1763398429379,0.02109332,94448.0,94446.0,0.03730638]
[1763398429580,0.02109332,94448.0,94445.0,0.03730638]
[1763398429784,0.02109332,94448.0,94446.0,0.03730638]
[1763398429986,0.02122499,94453.0,94446.0,0.03730638]
[1763398430209,0.01316886,94452.0,94447.0,0.03730638]
[1763398430355,0.02109332,94452.0,94447.0,0.03730638]
[1763398430562,0.00013167,94453.0,94447.0,0.03730638]
[1763398430563,0.0126079,94451.0,94447.0,0.03730638]
[1763398430763,0.00013167,94453.0,94445.0,0.03730638]
[1763398430963,0.02122499,94453.0,94445.0,0.03730638]
[1763398431167,0.02109332,94452.0,94447.0,0.03730638]
[1763398431510,0.00013167,94453.0,94451.0,0.03730638]
[1763398432259,0.00013167,94453.0,94452.0,0.03730638]
[1763398432466,0.00013167,94453.0,94448.0,0.05595379]
[1763398432656,0.00013167,94453.0,94449.0,0.05595379]
[1763398432862,0.00013167,94453.0,94448.0,0.05595379]
[1763398433060,0.00013167,94453.0,94449.0,0.05595379]
[1763398433219,0.00013167,94453.0,94450.0,0.05595379]
[1763398433623,0.00013167,94453.0,94451.0,0.05595379]
[1763398433843,0.00013167,94453.0,94450.0,0.05595379]
[1763398434216,0.02122499,94453.0,94441.0,0.02117724]
[1763398434415,0.02122499,94453.0,94431.0,0.02117948]
[1763398434615,0.65726108,94440.0,94431.0,0.02117948]
[1763398435062,0.65726108,94440.0,94430.0,0.03415]
[1763398435929,0.65726108,94440.0,94431.0,0.02117948]
[1763398436136,0.65726108,94440.0,94431.0,0.1479]
[1763398436602,0.65726108,94440.0,94431.0,0.16907948]
[1763398437045,0.96534817,94441.0,94431.0,0.16907948]
[1763398437262,0.96534817,94441.0,94431.0,0.02117948]
[1763398438012,0.96534817,94441.0,94430.0,0.03415]
[1763398438258,0.96534817,94441.0,94431.0,0.02117948]
[1763398438469,0.00013167,94453.0,94431.0,0.02117948]
[1763398438683,0.96534817,94441.0,94431.0,0.02117948]
[1763398438915,0.96534817,94441.0,94431.0,0.08727948]
[1763398439778,0.96534817,94441.0,94430.0,0.03415]
[1763398439995,0.96534817,94441.0,94431.0,0.02117948]
[1763398440432,0.96534817,94441.0,94430.0,0.03415]
[1763398440658,0.96534817,94441.0,94440.0,0.04229]
[1763398440902,0.00013167,94453.0,94440.0,0.04229]
[1763398441164,0.00013167,94453.0,94452.0,0.03349]
[1763398441388,0.00013167,94453.0,94440.0,0.10828]
[1763398441607,0.00013167,94453.0,94434.0,0.03742067]
[1763398441608,0.96534817,94450.0,94434.0,0.03742067]
[1763398441841,0.96534817,94450.0,94430.0,0.07157067]
[1763398442061,0.00013167,94453.0,94425.0,0.03742067]
[1763398442062,0.96534817,94440.0,94425.0,0.03742067]
[1763398442289,0.96534817,94440.0,94412.0,0.06599]
[1763398442290,0.02109332,94439.0,94426.0,0.0211806]
[1763398442491,0.00013167,94453.0,94422.0,0.0211815]
[1763398442783,0.96534817,94436.0,94422.0,0.0211815]
[1763398443200,0.96534817,94450.0,94435.0,0.07578]
[1763398443520,0.00013167,94453.0,94452.0,0.07578]
[1763398443846,0.96534817,94490.0,94455.0,3.0]
[1763398444146,0.01982512,94489.0,94479.0,0.04229]
[1763398444479,0.96547991,94490.0,94462.0,0.06599]
[1763398444480,0.01982512,94488.0,94462.0,0.06599]
[1763398444706,0.96534817,94472.0,94460.0,0.03349]
[1763398444917,0.96534817,94472.0,94461.0,0.02117275]
[1763398445181,0.96534817,94480.0,94471.0,0.04229]
[1763398445403,0.01983137,94479.0,94472.0,0.02117029]
[1763398445613,0.01983137,94478.0,94473.0,0.06599]
[1763398445882,0.96547991,94490.0,94489.0,0.03349]
[1763398446107,0.01996154,94490.0,94473.0,0.06599]
[1763398446328,0.01996154,94490.0,94466.0,0.06599]
[1763398446329,0.0198298,94489.0,94466.0,0.06599]
[1763398446549,0.0198298,94488.0,94466.0,0.06599]
[1763398446770,0.00013174,94490.0,94466.0,0.06599]
[1763398446771,0.96534817,94480.0,94466.0,0.06599]
[1763398446991,0.96534817,94480.0,94461.0,0.02798437]
[1763398446992,0.0198298,94479.0,94461.0,0.02798437]
[1763398447247,0.0198298,94478.0,94460.0,0.06147437]
[1763398447444,0.0198298,94477.0,94460.0,0.06147437]
[1763398447666,0.0198298,94476.0,94461.0,0.08218889]
[1763398447888,0.0198298,94475.0,94461.0,0.08218889]
[1763398448107,0.0198298,94474.0,94461.0,0.06599]
[1763398448325,0.0198298,94473.0,94461.0,0.06599]
[1763398448544,0.96534817,94480.0,94461.0,0.06599]
[1763398448767,0.01983603,94479.0,94461.0,0.06599]
[1763398449005,0.01983603,94478.0,94462.0,0.02117253]
[1763398449276,0.00013174,94490.0,94460.0,0.03349]
[1763398449277,0.96534817,94472.0,94460.0,0.03349]
[1763398449498,0.96534817,94472.0,94466.0,0.001]
[1763398449732,0.11762814,94471.0,94462.0,0.02798437]
[1763398449959,0.11762814,94471.0,94457.0,0.03742067]
[1763398449960,0.38751206,94470.0,94461.0,0.001]
[1763398450178,0.38751206,94470.0,94436.0,0.07430909]
[1763398450179,0.36641874,94468.0,94456.0,0.02798437]
[1763398450385,0.36641874,94468.0,94455.0,0.02798437]
[1763398450386,0.04341874,94466.0,94455.0,0.02798437]
[1763398450610,0.96534817,94465.0,94460.0,0.001]
[1763398451036,0.02109332,94464.0,94460.0,0.001]
[1763398451873,0.02109332,94464.0,94457.0,0.02798437]
[1763398452208,0.02109332,94464.0,94456.0,0.02798437]
[1763398452410,0.01455959,94464.0,94456.0,0.02798437]
[1763398452632,0.96534817,94466.0,94456.0,0.02798437]
[1763398452835,0.02109332,94465.0,94455.0,0.02798437]
[1763398453065,0.02109332,94465.0,94454.0,0.02798437]
[1763398453273,0.96534817,94464.0,94456.0,0.02798437]
[1763398453474,0.96534817,94459.0,94455.0,0.02798437]
[1763398453673,0.02109332,94458.0,94454.0,0.02798437]
[1763398453898,0.96534817,94464.0,94454.0,0.02798437]
[1763398454033,0.96534817,94470.0,94458.0,0.02798437]
[1763398454232,0.96534817,94480.0,94463.0,0.03349]
[1763398454433,0.96534817,94480.0,94465.0,0.02798437]
[1763398454690,0.96539208,94480.0,94468.0,0.02798437]
[1763398454890,4.391e-05,94480.0,94470.0,0.02798437]
[1763398455033,4.391e-05,94480.0,94471.0,0.04915488]
[1763398455239,4.391e-05,94480.0,94472.0,0.02798437]
[1763398455439,4.391e-05,94480.0,94473.0,0.02117006]
[1763398455937,4.391e-05,94480.0,94472.0,0.02798437]
[1763398456143,4.391e-05,94480.0,94463.0,0.03349]
[1763398456144,4.391e-05,94480.0,94471.0,0.02798437]
[1763398456377,4.391e-05,94480.0,94472.0,0.01857454]
[1763398457012,4.391e-05,94480.0,94471.0,0.02798437]
[1763398457255,4.391e-05,94480.0,94472.0,0.02117029]
[1763398457454,4.391e-05,94480.0,94469.0,0.02798437]
[1763398457861,4.391e-05,94480.0,94459.0,0.03349]
[1763398457862,0.02113723,94480.0,94468.0,0.02798437]
[1763398458059,0.02113723,94480.0,94459.0,0.03349]
[1763398458060,0.02113723,94480.0,94467.0,0.02798437]
[1763398458259,0.96539208,94480.0,94466.0,0.02798437]
[1763398458475,0.96539208,94480.0,94469.0,0.02798437]
[1763398458691,4.391e-05,94480.0,94470.0,0.04915511]
[1763398458834,4.391e-05,94480.0,94471.0,0.02798437]
[1763398459032,4.391e-05,94480.0,94473.0,0.02798437]
[1763398459232,4.391e-05,94480.0,94474.0,0.02116984]
[1763398459437,4.391e-05,94480.0,94479.0,0.04392]
[1763398459686,4.391e-05,94480.0,94479.0,0.06508872]
[1763398459899,4.391e-05,94480.0,94479.0,0.12782872]
[1763398460701,4.391e-05,94480.0,94473.0,0.02798437]
[1763398460922,4.391e-05,94480.0,94479.0,0.001]
[1763398462073,4.391e-05,94480.0,94471.0,0.02117051]
[1763398462328,4.391e-05,94480.0,94473.0,0.001]
[1763398462665,4.391e-05,94480.0,94469.0,0.02117096]
[1763398462864,4.391e-05,94480.0,94479.0,0.04392]
[1763398463079,4.391e-05,94480.0,94479.0,0.10666]
[1763398463554,4.391e-05,94480.0,94479.0,0.15581309]
[1763398463710,0.96534817,94510.0,94479.0,0.12782872]
[1763398463878,0.96578727,94510.0,94483.0,0.02794869]
[1763398464077,0.96578727,94510.0,94484.0,0.04911629]
[1763398464276,0.96578727,94510.0,94484.0,0.0211676]
[1763398464477,0.0004391,94510.0,94509.0,0.07427]
[1763398464778,0.0004391,94510.0,94509.0,0.03035]
[1763398465337,0.0004391,94510.0,94500.0,0.03035]
[1763398465592,0.96578727,94510.0,94500.0,0.03035]
[1763398465765,0.96578727,94510.0,94501.0,0.01754596]
[1763398466128,0.96578727,94510.0,94500.0,0.03035]
[1763398466352,0.96578727,94510.0,94501.0,0.02116379]
[1763398467172,0.96578727,94510.0,94500.0,0.03035]
[1763398468368,0.96578727,94510.0,94501.0,0.02116379]
[1763398468793,0.96578727,94510.0,94493.0,0.03035]
[1763398469016,0.96578727,94510.0,94450.0,0.00999999]
[1763398469017,0.34409332,94509.0,94483.0,0.02794869]
[1763398469244,0.96534817,94500.0,94484.0,0.0211676]
[1763398469467,0.96534817,94500.0,94484.0,0.0830976]
[1763398469713,0.96578727,94510.0,94484.0,0.0830976]
[1763398469921,0.0004391,94510.0,94485.0,0.06193]
[1763398470141,0.96578727,94510.0,94486.0,0.02116715]
[1763398470376,0.96578727,94510.0,94487.0,0.06193]
[1763398470587,0.0004391,94510.0,94509.0,0.03252]
[1763398470797,0.0004391,94510.0,94504.0,0.03252]
[1763398471008,0.0004391,94510.0,94505.0,0.0211629]
[1763398471221,0.0004391,94510.0,94493.0,0.02116558]
[1763398471439,0.96578727,94510.0,94492.0,0.06193]
[1763398473189,0.96078727,94510.0,94492.0,0.06193]
[1763398474747,0.96078727,94510.0,94489.0,0.03252]
[1763398474914,0.96534817,94500.0,94490.0,0.02116626]
[1763398475124,0.96534817,94500.0,94490.0,0.02160536]
[1763398475638,0.96534817,94510.0,94499.0,0.04113]
[1763398475796,0.96534817,94510.0,94500.0,0.02116402]
[1763398476837,0.96534817,94520.0,94509.0,0.03252]
[1763398477053,1.00626522,94519.0,94509.0,0.03252]
[1763398477254,0.01982373,94518.0,94509.0,0.03252]
[1763398477453,0.0353622,94517.0,94509.0,0.03252]
[1763398477630,0.01553847,94517.0,94502.0,0.01462422]
[1763398477829,0.96534817,94512.0,94503.0,0.03252]
[1763398478036,0.96534817,94512.0,94504.0,0.02116312]
[1763398479335,0.96534817,94512.0,94503.0,0.03252]
[1763398479972,0.96534817,94512.0,94502.0,0.03252]
[1763398480375,0.96534817,94512.0,94503.0,0.02116334]
[1763398480694,0.96534817,94540.0,94511.0,0.04113]
[1763398480897,0.96534817,94550.0,94523.0,0.07365]
[1763398481098,0.96534817,94540.0,94523.0,0.13558]
[1763398481295,0.96534817,94550.0,94523.0,0.13558]
[1763398481528,0.96534817,94540.0,94523.0,0.15794084]
[1763398481755,0.96534817,94540.0,94513.0,0.1479]
[1763398481957,0.01551387,94552.0,94513.0,0.1479]
[1763398481958,0.02109332,94539.0,94514.0,0.04202135]
[1763398482166,0.00038195,94524.0,94515.0,0.02236654]
[1763398482409,0.01983026,94523.0,94516.0,0.02236654]
[1763398482576,0.01983026,94522.0,94517.0,0.02236903]
[1763398482809,0.01983026,94521.0,94518.0,0.02236903]
[1763398482947,0.01983026,94521.0,94509.0,0.02794869]
[1763398482948,0.01983026,94520.0,94510.0,0.01908041]
[1763398483149,0.02147527,94524.0,94511.0,0.02236791]
[1763398483150,0.01983026,94519.0,94511.0,0.02236791]
[1763398483371,0.07940744,94544.0,94502.0,0.03252]
[1763398483372,0.04341874,94542.0,94512.0,0.04352924]
[1763398483601,0.04341874,94536.0,94513.0,0.02236791]
[1763398483803,2.0,94548.0,94514.0,0.02236791]
[1763398483965,0.04341874,94539.0,94515.0,0.02236791]
[1763398484186,0.04341874,94539.0,94516.0,0.02236791]
[1763398484403,0.04341874,94539.0,94517.0,0.02236791]
[1763398484700,0.04341874,94539.0,94518.0,0.02236791]
[1763398484892,0.04341874,94539.0,94512.0,0.00013168]
[1763398485047,0.04341874,94539.0,94513.0,0.02238119]
[1763398485249,0.04341874,94537.0,94514.0,0.02238119]
[1763398485620,0.04341874,94538.0,94515.0,0.02238119]
[1763398485753,0.04341874,94538.0,94516.0,0.02238119]
[1763398485954,0.04341874,94538.0,94517.0,0.02238119]
[1763398486305,0.04341874,94536.0,94512.0,0.00013168]
[1763398486506,0.04341874,94536.0,94513.0,0.02239279]
[1763398486728,0.324,94537.0,94514.0,0.02239279]
[1763398486924,0.324,94537.0,94512.0,0.00013168]
[1763398486925,0.324,94537.0,94515.0,0.02239279]
[1763398487127,0.324,94537.0,94516.0,0.02239279]
[1763398487354,0.001,94537.0,94517.0,0.02239279]
[1763398487507,0.001,94537.0,94518.0,0.02239279]
[1763398487708,0.323,94535.0,94519.0,0.02239279]
[1763398487895,0.323,94535.0,94512.0,0.00013168]
[1763398487896,0.323,94535.0,94520.0,0.02239279]
[1763398488096,0.323,94535.0,94512.0,0.00013168]
[1763398488299,0.323,94535.0,94513.0,0.02239345]
[1763398488629,0.323,94535.0,94514.0,0.02239345]
[1763398488880,0.001,94538.0,94515.0,0.04355411]
[1763398489133,0.0002,94570.0,94534.0,0.07365]
[1763398489340,0.001,94537.0,94534.0,0.07365]
[1763398489559,0.10416178,94568.0,94534.0,0.03252]
[1763398489831,0.01525182,94552.0,94535.0,0.02238926]